[Event "Early-Titled-Tuesday-Blitz-February-06-2024"]
[Site "Chess.com"]
[Date "2024.02.06"]
[Round "5"]
[White "HajiyevKanan"]
[Black "Raud100"]
[Result "1-0"]
[WhiteElo "2605"]
[BlackElo "2432"]
[TimeControl "180+1"]
[EndTime "8:56:20 PST"]
[Termination "HajiyevKanan won by resignation"]

1. d4 {[%clk 0:03:00.9]} 1... d5 {[%clk 0:02:59.7]} 2. Nf3 {[%clk 0:03:01.8]}
2... Nf6 {[%clk 0:02:59.5]} 3. c4 {[%clk 0:03:00.8]} 3... c6 {[%clk 0:02:59.8]}
4. cxd5 {[%clk 0:03:01.7]} 4... cxd5 {[%clk 0:02:59.9]} 5. Nc3 {[%clk
0:03:02.6]} 5... Nc6 {[%clk 0:03:00.4]} 6. Bg5 {[%clk 0:03:02.5]} 6... Bf5
{[%clk 0:02:58.9]} 7. Bxf6 {[%clk 0:03:02.3]} 7... gxf6 {[%clk 0:02:58.5]} 8.
Qb3 {[%clk 0:03:03.2]} 8... e6 {[%clk 0:02:54.4]} 9. Qxb7 {[%clk 0:03:02.7]}
9... Rc8 {[%clk 0:02:53.4]} 10. e3 {[%clk 0:02:52.6]} 10... Qc7 {[%clk
0:02:47.1]} 11. Ba6 {[%clk 0:02:30.2]} 11... Qxb7 {[%clk 0:02:41.5]} 12. Bxb7
{[%clk 0:02:31.1]} 12... Rc7 {[%clk 0:02:42.1]} 13. Ba6 {[%clk 0:02:26.8]} 13...
Bb4 {[%clk 0:02:28.6]} 14. Rc1 {[%clk 0:02:15.3]} 14... Ke7 {[%clk 0:02:26.7]}
15. a3 {[%clk 0:02:12.2]} 15... Bxc3+ {[%clk 0:02:10.4]} 16. Rxc3 {[%clk
0:02:13.1]} 16... Kd6 {[%clk 0:01:54.2]} 17. Kd2 {[%clk 0:02:11.2]} 17... Nb8
{[%clk 0:01:52.8]} 18. Rxc7 {[%clk 0:02:05.2]} 18... Kxc7 {[%clk 0:01:53.7]} 19.
Rc1+ {[%clk 0:02:04.9]} 19... Kb6 {[%clk 0:01:53.4]} 20. Be2 {[%clk 0:01:46.1]}
20... a5 {[%clk 0:01:46.4]} 21. Rc5 {[%clk 0:01:42]} 21... Nc6 {[%clk
0:01:44.7]} 22. Rb5+ {[%clk 0:01:30.2]} 22... Kc7 {[%clk 0:01:44.5]} 23. Ne1
{[%clk 0:01:23.3]} 23... h5 {[%clk 0:01:39.5]} 24. h4 {[%clk 0:01:21.8]} 24...
Bg4 {[%clk 0:01:33.8]} 25. Bd3 {[%clk 0:01:11.9]} 25... Kd6 {[%clk 0:01:28.3]}
26. Rb6 {[%clk 0:01:10.2]} 26... Kc7 {[%clk 0:01:26.2]} 27. Rb5 {[%clk
0:01:07.2]} 27... Kd6 {[%clk 0:01:23.4]} 28. f3 {[%clk 0:01:07.4]} 28... Bf5
{[%clk 0:01:23.1]} 29. Bxf5 {[%clk 0:01:08.1]} 29... exf5 {[%clk 0:01:24]} 30.
Nd3 {[%clk 0:01:08.3]} 30... a4 {[%clk 0:01:16.2]} 31. Nf4 {[%clk 0:01:06.3]}
31... Ne7 {[%clk 0:01:16.5]} 32. Rb6+ {[%clk 0:01:03.3]} 32... Kd7 {[%clk
0:01:16.4]} 33. Rxf6 {[%clk 0:01:00.9]} 33... Rb8 {[%clk 0:01:15.4]} 34. Kc2
{[%clk 0:00:58.1]} 34... Rc8+ {[%clk 0:01:14.6]} 35. Kb1 {[%clk 0:00:55.5]}
35... Rb8 {[%clk 0:01:13.6]} 36. Rxf7 {[%clk 0:00:51.6]} 36... Ke8 {[%clk
0:01:12.5]} 37. Rh7 {[%clk 0:00:51.5]} 37... Rb3 {[%clk 0:01:11.8]} 38. Kc2
{[%clk 0:00:45.9]} 38... Rxe3 {[%clk 0:01:10.2]} 39. Rxh5 {[%clk 0:00:38.7]}
39... Nc6 {[%clk 0:01:05.5]} 40. Rh8+ {[%clk 0:00:35.4]} 40... Kf7 {[%clk
0:01:00.9]} 41. Nxd5 {[%clk 0:00:33.9]} 41... Nxd4+ {[%clk 0:00:58.4]} 42. Kd2
{[%clk 0:00:33]} 42... Rb3 {[%clk 0:00:58.3]} 43. Kc1 {[%clk 0:00:25.6]} 43...
Ne2+ {[%clk 0:00:56]} 44. Kb1 {[%clk 0:00:25.5]} 44... Rd3 {[%clk 0:00:49.9]}
45. Rh7+ {[%clk 0:00:16.4]} 45... Kg6 {[%clk 0:00:47.8]} 46. Re7 {[%clk
0:00:16.6]} 46... Rxd5 {[%clk 0:00:29.3]} 47. Rxe2 {[%clk 0:00:16.7]} 47... Kh5
{[%clk 0:00:25.1]} 48. g3 {[%clk 0:00:17.2]} 48... f4 {[%clk 0:00:25.3]} 49. Rg2
{[%clk 0:00:14.3]} 49... Rd3 {[%clk 0:00:23.1]} 50. gxf4 {[%clk 0:00:12.1]}
50... Kxh4 {[%clk 0:00:21.5]} 51. Rg4+ {[%clk 0:00:12]} 51... Kh5 {[%clk
0:00:20.6]} 52. f5 {[%clk 0:00:12.9]} 52... Rxf3 {[%clk 0:00:20.2]} 53. Rxa4
{[%clk 0:00:13.1]} 53... Rxf5 {[%clk 0:00:21.1]} 54. Re4 {[%clk 0:00:08.1]}
54... Kg6 {[%clk 0:00:21.4]} 55. b4 {[%clk 0:00:08.3]} 55... Rf2 {[%clk
0:00:21.2]} 56. b5 {[%clk 0:00:07.7]} 56... Kf5 {[%clk 0:00:21.9]} 57. Re7
{[%clk 0:00:06.2]} 57... Kf6 {[%clk 0:00:20.4]} 58. Re8 {[%clk 0:00:06.8]} 58...
Kf7 {[%clk 0:00:19.3]} 59. Re4 {[%clk 0:00:07]} 59... Rf3 {[%clk 0:00:15.7]} 60.
Kb2 {[%clk 0:00:06.7]} 60... Kf6 {[%clk 0:00:16.3]} 61. a4 {[%clk 0:00:06.8]}
61... Kf5 {[%clk 0:00:16.9]} 62. Re8 {[%clk 0:00:06.9]} 62... Kf6 {[%clk
0:00:16.8]} 63. Rf8+ {[%clk 0:00:07.4]} 1-0

[Event "Early-Titled-Tuesday-Blitz-February-06-2024"]
[Site "Chess.com"]
[Date "2024.02.06"]
[Round "5"]
[White "ljm509"]
[Black "mkllnd1517"]
[Result "1-0"]
[WhiteElo "1994"]
[BlackElo "2344"]
[TimeControl "180+1"]
[EndTime "8:56:20 PST"]
[Termination "ljm509 won by resignation"]

1. e4 {[%clk 0:03:00]} 1... c6 {[%clk 0:02:59.9]} 2. d4 {[%clk 0:02:59.7]} 2...
d5 {[%clk 0:03:00.8]} 3. Nc3 {[%clk 0:02:58.9]} 3... dxe4 {[%clk 0:03:00.7]} 4.
Nxe4 {[%clk 0:02:59.8]} 4... Nf6 {[%clk 0:03:01.4]} 5. Nxf6+ {[%clk 0:03:00]}
5... exf6 {[%clk 0:03:02.3]} 6. c3 {[%clk 0:02:59.2]} 6... Bd6 {[%clk
0:03:02.9]} 7. Qc2 {[%clk 0:02:59.5]} 7... O-O {[%clk 0:03:03.1]} 8. Bd3 {[%clk
0:03:00.4]} 8... h5 {[%clk 0:03:03.2]} 9. Ne2 {[%clk 0:02:59.3]} 9... h4 {[%clk
0:02:58.6]} 10. Be3 {[%clk 0:02:57]} 10... Re8 {[%clk 0:02:44.1]} 11. O-O-O
{[%clk 0:02:55.9]} 11... Nd7 {[%clk 0:02:44.7]} 12. Kb1 {[%clk 0:02:55.5]} 12...
Nf8 {[%clk 0:02:40.4]} 13. g3 {[%clk 0:02:35.8]} 13... h3 {[%clk 0:02:14.4]} 14.
Qd2 {[%clk 0:02:32.4]} 14... Be6 {[%clk 0:02:08.1]} 15. Bf4 {[%clk 0:02:30.2]}
15... Bd5 {[%clk 0:01:46.7]} 16. Rhg1 {[%clk 0:02:24.5]} 16... b5 {[%clk
0:01:46.9]} 17. Bxd6 {[%clk 0:02:23.7]} 17... Qxd6 {[%clk 0:01:47.8]} 18. Nf4
{[%clk 0:02:23.8]} 18... Be6 {[%clk 0:01:40.8]} 19. Rge1 {[%clk 0:02:02.5]}
19... Bg4 {[%clk 0:01:37.1]} 20. Rxe8 {[%clk 0:02:01.8]} 20... Rxe8 {[%clk
0:01:38]} 21. Re1 {[%clk 0:02:01.5]} 21... Rxe1+ {[%clk 0:01:28.2]} 22. Qxe1
{[%clk 0:02:01.4]} 22... b4 {[%clk 0:01:28.2]} 23. Qe3 {[%clk 0:01:25.2]} 23...
bxc3 {[%clk 0:01:12.6]} 24. bxc3 {[%clk 0:01:26.1]} 24... g5 {[%clk 0:00:46.4]}
25. Ne2 {[%clk 0:01:16.9]} 25... Be6 {[%clk 0:00:46.8]} 26. f4 {[%clk
0:01:02.6]} 26... Qa3 {[%clk 0:00:14.1]} 27. Nc1 {[%clk 0:01:01.6]} 27... g4
{[%clk 0:00:14.6]} 28. f5 {[%clk 0:00:48.4]} 28... Bd5 {[%clk 0:00:14.3]} 29.
Be2 {[%clk 0:00:48.2]} 29... Qa5 {[%clk 0:00:06.4]} 30. Bxg4 {[%clk 0:00:44.6]}
30... Qb6+ {[%clk 0:00:06.9]} 31. Ka1 {[%clk 0:00:43.2]} 31... Nh7 {[%clk
0:00:07.3]} 32. Bxh3 {[%clk 0:00:41.6]} 32... Ng5 {[%clk 0:00:07]} 33. Bf1
{[%clk 0:00:41.1]} 33... a5 {[%clk 0:00:06.3]} 34. c4 {[%clk 0:00:32.5]} 34...
Be4 {[%clk 0:00:06.5]} 35. Bd3 {[%clk 0:00:31.8]} 35... Bxd3 {[%clk 0:00:06.3]}
36. Qxd3 {[%clk 0:00:31.6]} 36... Qb4 {[%clk 0:00:05.8]} 37. h4 {[%clk
0:00:29.7]} 37... Nh7 {[%clk 0:00:05.9]} 38. g4 {[%clk 0:00:22.6]} 38... Qe1
{[%clk 0:00:06]} 39. Kb2 {[%clk 0:00:19]} 39... Qxh4 {[%clk 0:00:06]} 40. Qe4
{[%clk 0:00:18.7]} 40... Ng5 {[%clk 0:00:06]} 41. Qxc6 {[%clk 0:00:18.1]} 41...
Qxg4 {[%clk 0:00:06.6]} 42. d5 {[%clk 0:00:18]} 42... Qxf5 {[%clk 0:00:05.9]}
43. Nb3 {[%clk 0:00:17.3]} 43... Qe5+ {[%clk 0:00:04.3]} 44. Ka3 {[%clk
0:00:17.2]} 44... Qc3 {[%clk 0:00:02.8]} 45. Qc5 {[%clk 0:00:13.9]} 45... Ne4
{[%clk 0:00:02.4]} 46. Qxa5 {[%clk 0:00:13.4]} 46... Qe3 {[%clk 0:00:01]} 47. d6
{[%clk 0:00:11.5]} 47... Kg7 {[%clk 0:00:01.9]} 48. d7 {[%clk 0:00:11.4]} 48...
Qd3 {[%clk 0:00:02.5]} 49. d8=Q {[%clk 0:00:10.6]} 49... Nd6 {[%clk 0:00:02.5]}
50. Qxd6 {[%clk 0:00:04.5]} 50... Qxd6+ {[%clk 0:00:02.7]} 51. Qc5 {[%clk
0:00:04.8]} 51... Qa6+ {[%clk 0:00:02.7]} 52. Kb4 {[%clk 0:00:04.8]} 52... Qc8
{[%clk 0:00:03.6]} 53. Qxc8 {[%clk 0:00:04.5]} 1-0

[Event "Early-Titled-Tuesday-Blitz-February-06-2024"]
[Site "Chess.com"]
[Date "2024.02.06"]
[Round "5"]
[White "C_K_G"]
[Black "NastyaHn"]
[Result "0-1"]
[WhiteElo "2125"]
[BlackElo "2382"]
[TimeControl "180+1"]
[EndTime "8:56:26 PST"]
[Termination "NastyaHn won by resignation"]

1. e4 {[%clk 0:02:53.6]} 1... e6 {[%clk 0:02:58.6]} 2. Nf3 {[%clk 0:02:52.7]}
2... d5 {[%clk 0:02:59.1]} 3. Nc3 {[%clk 0:02:49.8]} 3... Nf6 {[%clk 0:02:59]}
4. e5 {[%clk 0:02:49]} 4... Nfd7 {[%clk 0:02:59.1]} 5. d4 {[%clk 0:02:48.1]}
5... c5 {[%clk 0:02:59.3]} 6. Bg5 {[%clk 0:02:47.8]} 6... Be7 {[%clk 0:02:58.3]}
7. Bxe7 {[%clk 0:02:47.1]} 7... Qxe7 {[%clk 0:02:58.6]} 8. Nb5 {[%clk
0:02:46.7]} 8... O-O {[%clk 0:02:58.8]} 9. Nc7 {[%clk 0:02:44.2]} 9... Nxe5
{[%clk 0:02:21.6]} 10. Nxa8 {[%clk 0:02:37.8]} 10... Nxf3+ {[%clk 0:02:21.6]}
11. Qxf3 {[%clk 0:02:35.3]} 11... cxd4 {[%clk 0:02:21.3]} 12. c3 {[%clk
0:02:26.5]} 12... b6 {[%clk 0:02:18.1]} 13. Qg3 {[%clk 0:01:54.5]} 13... e5
{[%clk 0:02:13]} 14. Be2 {[%clk 0:01:39.3]} 14... Bb7 {[%clk 0:02:11.5]} 15.
Nxb6 {[%clk 0:01:38.8]} 15... axb6 {[%clk 0:02:11.6]} 16. O-O {[%clk 0:01:38.4]}
16... dxc3 {[%clk 0:02:10]} 17. Qxc3 {[%clk 0:01:36.8]} 17... d4 {[%clk
0:02:10.4]} 18. Qg3 {[%clk 0:01:36.1]} 18... Nd7 {[%clk 0:02:07.4]} 19. Rfe1
{[%clk 0:01:35.2]} 19... Nf6 {[%clk 0:02:06.2]} 20. a3 {[%clk 0:01:30.8]} 20...
e4 {[%clk 0:02:01.7]} 21. Rad1 {[%clk 0:01:24.6]} 21... Qc5 {[%clk 0:01:57.3]}
22. Rd2 {[%clk 0:01:20.6]} 22... h6 {[%clk 0:01:19.5]} 23. Red1 {[%clk
0:01:14.7]} 23... d3 {[%clk 0:01:17]} 24. Bf1 {[%clk 0:01:12.3]} 24... Re8
{[%clk 0:01:09.8]} 25. h3 {[%clk 0:01:02.8]} 25... e3 {[%clk 0:00:48.4]} 26.
Rxd3 {[%clk 0:00:57.2]} 26... e2 {[%clk 0:00:47.9]} 27. Bxe2 {[%clk 0:00:57.3]}
27... Rxe2 {[%clk 0:00:47.7]} 28. Rd8+ {[%clk 0:00:57.2]} 28... Kh7 {[%clk
0:00:25.3]} 29. Qd3+ {[%clk 0:00:55.4]} 29... Re4 {[%clk 0:00:25.4]} 30. b4
{[%clk 0:00:42]} 30... Qf5 {[%clk 0:00:14.3]} 31. g4 {[%clk 0:00:20.4]} 31...
Qg6 {[%clk 0:00:14]} 32. f3 {[%clk 0:00:19.3]} 32... Re5 {[%clk 0:00:11.4]} 33.
Qxg6+ {[%clk 0:00:17]} 33... Kxg6 {[%clk 0:00:10.5]} 34. R1d3 {[%clk 0:00:17.5]}
34... Re1+ {[%clk 0:00:10.1]} 35. Kf2 {[%clk 0:00:17.3]} 35... Rh1 {[%clk
0:00:10.4]} 36. Kg2 {[%clk 0:00:17.5]} 36... Ra1 {[%clk 0:00:10.3]} 37. Rb8
{[%clk 0:00:17.5]} 37... Ba6 {[%clk 0:00:10]} 38. Re3 {[%clk 0:00:13.8]} 38...
Bf1+ {[%clk 0:00:10.1]} 39. Kf2 {[%clk 0:00:13.6]} 39... b5 {[%clk 0:00:09.5]}
40. Rb6 {[%clk 0:00:13.7]} 40... Bc4 {[%clk 0:00:08.5]} 41. f4 {[%clk
0:00:13.7]} 41... Rf1+ {[%clk 0:00:07.4]} 42. Kg2 {[%clk 0:00:13.5]} 42... Rxf4
{[%clk 0:00:07.2]} 43. Kg3 {[%clk 0:00:14.1]} 43... Rd4 {[%clk 0:00:07]} 44. h4
{[%clk 0:00:14.4]} 44... Kh7 {[%clk 0:00:07]} 45. Rb7 {[%clk 0:00:11.5]} 45...
Nd5 {[%clk 0:00:06.6]} 46. Re8 {[%clk 0:00:11.2]} 46... Rd3+ {[%clk 0:00:05.8]}
47. Kf2 {[%clk 0:00:10.5]} 47... Rd2+ {[%clk 0:00:05.9]} 48. Kg3 {[%clk
0:00:09.1]} 48... Nf6 {[%clk 0:00:05.9]} 49. Rbb8 {[%clk 0:00:08.3]} 49... Nxe8
{[%clk 0:00:05.8]} 50. Rxe8 {[%clk 0:00:09.2]} 50... Rd3+ {[%clk 0:00:06.4]} 51.
Kf4 {[%clk 0:00:09.3]} 51... Rxa3 {[%clk 0:00:07.1]} 52. g5 {[%clk 0:00:09.1]}
52... hxg5+ {[%clk 0:00:06.8]} 53. hxg5 {[%clk 0:00:10]} 53... Rb3 {[%clk
0:00:07.2]} 0-1

[Event "Early-Titled-Tuesday-Blitz-February-06-2024"]
[Site "Chess.com"]
[Date "2024.02.06"]
[Round "5"]
[White "Nouali_Mohamed"]
[Black "AradNazari"]
[Result "0-1"]
[WhiteElo "2558"]
[BlackElo "2778"]
[TimeControl "180+1"]
[EndTime "8:56:27 PST"]
[Termination "AradNazari won on time"]

1. e4 {[%clk 0:03:00]} 1... c5 {[%clk 0:02:56.8]} 2. Nf3 {[%clk 0:02:59.2]} 2...
d6 {[%clk 0:02:54.7]} 3. d4 {[%clk 0:02:59.3]} 3... cxd4 {[%clk 0:02:55.6]} 4.
Nxd4 {[%clk 0:02:59.9]} 4... Nf6 {[%clk 0:02:56.3]} 5. Nc3 {[%clk 0:03:00.4]}
5... a6 {[%clk 0:02:57.1]} 6. Bc4 {[%clk 0:03:00.7]} 6... e6 {[%clk 0:02:47.3]}
7. Bb3 {[%clk 0:03:00.5]} 7... b5 {[%clk 0:02:47.2]} 8. Bg5 {[%clk 0:02:59.5]}
8... Be7 {[%clk 0:02:42.3]} 9. Qe2 {[%clk 0:02:56.8]} 9... Qb6 {[%clk
0:02:40.2]} 10. O-O-O {[%clk 0:02:54.3]} 10... Nbd7 {[%clk 0:02:34.1]} 11. Bxe6
{[%clk 0:02:26]} 11... fxe6 {[%clk 0:02:32.7]} 12. Nxe6 {[%clk 0:02:26.9]} 12...
Kf7 {[%clk 0:02:32.4]} 13. Nd5 {[%clk 0:02:17.4]} 13... Qa5 {[%clk 0:01:53.9]}
14. Nxe7 {[%clk 0:01:52.1]} 14... Kxe6 {[%clk 0:01:19.5]} 15. Nf5 {[%clk
0:01:48.1]} 15... Qxa2 {[%clk 0:01:19.4]} 16. Rxd6+ {[%clk 0:01:31.4]} 16... Kf7
{[%clk 0:01:18.2]} 17. Rhd1 {[%clk 0:01:18]} 17... Qa1+ {[%clk 0:00:53.7]} 18.
Kd2 {[%clk 0:01:17.7]} 18... Qxb2 {[%clk 0:00:54.4]} 19. Ke1 {[%clk 0:01:07.1]}
19... Qb4+ {[%clk 0:00:54.4]} 20. Kf1 {[%clk 0:01:06]} 20... Qc4 {[%clk
0:00:29.6]} 21. R6d3 {[%clk 0:00:44.4]} 21... Qe6 {[%clk 0:00:22.5]} 22. Nd6+
{[%clk 0:00:17.1]} 22... Kg8 {[%clk 0:00:18.7]} 23. e5 {[%clk 0:00:07.7]} 23...
Qxe5 {[%clk 0:00:14.4]} 24. Re3 {[%clk 0:00:07.6]} 24... Qxg5 {[%clk 0:00:09.3]}
25. Re8+ {[%clk 0:00:07.6]} 25... Nf8 {[%clk 0:00:09.8]} 26. Qe7 {[%clk
0:00:06.8]} 26... h6 {[%clk 0:00:05]} 27. Qxf8+ {[%clk 0:00:04.7]} 27... Kh7
{[%clk 0:00:05.7]} 28. Qxh8+ {[%clk 0:00:05.6]} 28... Kg6 {[%clk 0:00:06.3]} 29.
Qf8 {[%clk 0:00:03.4]} 29... Qg4 {[%clk 0:00:06.8]} 30. Qf7+ {[%clk 0:00:03.7]}
30... Kh7 {[%clk 0:00:07.5]} 31. f3 {[%clk 0:00:04.1]} 31... Qb4 {[%clk
0:00:03]} 32. Rxc8 {[%clk 0:00:03.3]} 32... Rxc8 {[%clk 0:00:03]} 33. Nxc8
{[%clk 0:00:04.2]} 33... Qc5 {[%clk 0:00:03.3]} 34. Qe6 {[%clk 0:00:02.8]} 34...
Qxc2 {[%clk 0:00:03]} 35. Qe2 {[%clk 0:00:02.8]} 35... Qxc8 {[%clk 0:00:03.1]}
36. Qd3+ {[%clk 0:00:03.3]} 36... Kg8 {[%clk 0:00:02.4]} 37. Re1 {[%clk
0:00:04.2]} 37... Qc4 {[%clk 0:00:02.2]} 38. Qe2 {[%clk 0:00:05.1]} 38... Nd5
{[%clk 0:00:02.3]} 39. Qxc4 {[%clk 0:00:05.1]} 39... bxc4 {[%clk 0:00:03.2]} 40.
Rc1 {[%clk 0:00:05.5]} 40... a5 {[%clk 0:00:03.9]} 41. Ke2 {[%clk 0:00:05]}
41... c3 {[%clk 0:00:03.7]} 42. Kd3 {[%clk 0:00:05.1]} 42... a4 {[%clk
0:00:04.3]} 43. Kc4 {[%clk 0:00:04.9]} 43... Ne3+ {[%clk 0:00:05]} 44. Kxc3
{[%clk 0:00:05]} 44... Nxg2 {[%clk 0:00:05.7]} 45. Kb4 {[%clk 0:00:05.3]} 45...
Nh4 {[%clk 0:00:06.2]} 46. Rc3 {[%clk 0:00:05.7]} 46... Kf7 {[%clk 0:00:06.3]}
47. Kxa4 {[%clk 0:00:06.1]} 47... Kf6 {[%clk 0:00:07.1]} 48. Kb4 {[%clk
0:00:06.6]} 48... Kf5 {[%clk 0:00:07.8]} 49. Kc4 {[%clk 0:00:03.9]} 49... g5
{[%clk 0:00:07.8]} 50. Kd4 {[%clk 0:00:02.9]} 50... Kf4 {[%clk 0:00:08.4]} 51.
Rc6 {[%clk 0:00:03.2]} 51... Nxf3+ {[%clk 0:00:08.4]} 52. Kd3 {[%clk 0:00:03.3]}
52... Ne5+ {[%clk 0:00:08]} 53. Ke2 {[%clk 0:00:03.8]} 53... Nxc6 {[%clk
0:00:08.9]} 0-1

[Event "Early-Titled-Tuesday-Blitz-February-06-2024"]
[Site "Chess.com"]
[Date "2024.02.06"]
[Round "5"]
[White "ValentunHulka"]
[Black "biostatistician"]
[Result "1-0"]
[WhiteElo "2819"]
[BlackElo "2611"]
[TimeControl "180+1"]
[EndTime "8:56:30 PST"]
[Termination "ValentunHulka won on time"]

1. d4 {[%clk 0:03:00.3]} 1... Nf6 {[%clk 0:03:00]} 2. c4 {[%clk 0:03:01.2]} 2...
g6 {[%clk 0:03:00]} 3. Nc3 {[%clk 0:03:01.9]} 3... Bg7 {[%clk 0:03:00.4]} 4. e4
{[%clk 0:03:02.1]} 4... d6 {[%clk 0:03:00.8]} 5. h3 {[%clk 0:03:02.4]} 5... O-O
{[%clk 0:03:01.7]} 6. Be3 {[%clk 0:03:02.9]} 6... Nc6 {[%clk 0:02:59.7]} 7. Nf3
{[%clk 0:03:02]} 7... e5 {[%clk 0:02:56.5]} 8. d5 {[%clk 0:03:02.4]} 8... Nd4
{[%clk 0:02:56.3]} 9. Nxd4 {[%clk 0:02:49.8]} 9... exd4 {[%clk 0:02:57.2]} 10.
Bxd4 {[%clk 0:02:32]} 10... Nxe4 {[%clk 0:02:57.2]} 11. Nxe4 {[%clk 0:02:26.7]}
11... Qh4 {[%clk 0:02:56.2]} 12. Bxg7 {[%clk 0:02:21.3]} 12... Qxe4+ {[%clk
0:02:55.5]} 13. Qe2 {[%clk 0:02:18.5]} 13... Qxe2+ {[%clk 0:02:53.5]} 14. Bxe2
{[%clk 0:02:19.4]} 14... Kxg7 {[%clk 0:02:54.2]} 15. Kd2 {[%clk 0:02:19.5]}
15... Re8 {[%clk 0:02:52.8]} 16. Rhe1 {[%clk 0:02:17.9]} 16... Bd7 {[%clk
0:02:46.6]} 17. Kc3 {[%clk 0:02:12.6]} 17... g5 {[%clk 0:02:43.6]} 18. Bg4
{[%clk 0:02:08.9]} 18... f5 {[%clk 0:02:43]} 19. Bh5 {[%clk 0:02:06.2]} 19...
Re5 {[%clk 0:02:39.3]} 20. Rxe5 {[%clk 0:01:57.6]} 20... dxe5 {[%clk 0:02:40.2]}
21. Be2 {[%clk 0:01:58.3]} 21... Kf6 {[%clk 0:02:37.5]} 22. c5 {[%clk
0:01:57.2]} 22... a5 {[%clk 0:02:24.9]} 23. Rd1 {[%clk 0:01:51.3]} 23... Re8
{[%clk 0:02:12.3]} 24. d6 {[%clk 0:01:46.6]} 24... c6 {[%clk 0:01:54.2]} 25. a3
{[%clk 0:01:42.7]} 25... Ra8 {[%clk 0:01:53]} 26. Bc4 {[%clk 0:01:38.6]} 26...
a4 {[%clk 0:01:50.6]} 27. Kb4 {[%clk 0:01:36.2]} 27... e4 {[%clk 0:01:48.3]} 28.
b3 {[%clk 0:01:18.9]} 28... axb3 {[%clk 0:01:47.5]} 29. Bxb3 {[%clk 0:01:19.8]}
29... Ke5 {[%clk 0:01:40.1]} 30. a4 {[%clk 0:01:19.1]} 30... h5 {[%clk
0:01:35.7]} 31. Bc4 {[%clk 0:01:17]} 31... h4 {[%clk 0:01:34.9]} 32. a5 {[%clk
0:01:15.5]} 32... g4 {[%clk 0:01:32.1]} 33. a6 {[%clk 0:01:15.9]} 33... bxa6
{[%clk 0:01:31.5]} 34. Ka5 {[%clk 0:01:09.8]} 34... gxh3 {[%clk 0:01:30.6]} 35.
gxh3 {[%clk 0:01:10.7]} 35... f4 {[%clk 0:01:31.1]} 36. Kb6 {[%clk 0:01:03.4]}
36... a5 {[%clk 0:01:23.3]} 37. Kc7 {[%clk 0:00:57.1]} 37... Bxh3 {[%clk
0:01:13.7]} 38. Kxc6 {[%clk 0:00:54.1]} 38... Rc8+ {[%clk 0:01:00.3]} 39. Kb6
{[%clk 0:00:51.3]} 39... Bd7 {[%clk 0:01:00.4]} 40. Bd5 {[%clk 0:00:42.9]} 40...
e3 {[%clk 0:00:56.8]} 41. fxe3 {[%clk 0:00:42]} 41... fxe3 {[%clk 0:00:57.7]}
42. Bb7 {[%clk 0:00:42.3]} 42... Rh8 {[%clk 0:00:48.5]} 43. Re1 {[%clk
0:00:35.1]} 43... h3 {[%clk 0:00:38.6]} 44. Rxe3+ {[%clk 0:00:33.2]} 44... Kd4
{[%clk 0:00:37.2]} 45. Re1 {[%clk 0:00:33.8]} 45... h2 {[%clk 0:00:24.4]} 46.
Rd1+ {[%clk 0:00:34.3]} 46... Ke5 {[%clk 0:00:23.9]} 47. Kxa5 {[%clk 0:00:28.1]}
47... Bg4 {[%clk 0:00:20.2]} 48. Re1+ {[%clk 0:00:27]} 48... Kd4 {[%clk
0:00:19.1]} 49. Kb6 {[%clk 0:00:27.6]} 49... Rb8 {[%clk 0:00:15.5]} 50. c6
{[%clk 0:00:23.4]} 50... Bf3 {[%clk 0:00:13.6]} 51. Kc7 {[%clk 0:00:19.2]} 51...
Rh8 {[%clk 0:00:10]} 52. d7 {[%clk 0:00:13.4]} 52... h1=Q {[%clk 0:00:09.8]} 53.
Rxh1 {[%clk 0:00:07.4]} 53... Bxh1 {[%clk 0:00:10.7]} 54. Kb6 {[%clk 0:00:03.5]}
54... Ke5 {[%clk 0:00:09.4]} 55. c7 {[%clk 0:00:03.7]} 55... Rh6+ {[%clk
0:00:07]} 56. Ka7 {[%clk 0:00:04.3]} 56... Bxb7 {[%clk 0:00:06.7]} 57. Kxb7
{[%clk 0:00:05.2]} 1-0